{"text_format":"1","workbook":"xlsx","n_sheets":1,"sheets":["Intersections"],"not_rendered":{"charts":0,"images":0,"macros":1,"external_links":0,"defined_names":1,"comments":0,"pivot_tables":0},"unopened":[],"bounds":{"document_bytes":16777216,"sheet_cells":100000,"rows_first":2000,"rows_last":500,"rows_between":2000,"halvings":0,"cell_chars":16384,"cell_head_chars":4096},"cells_cut":0,"cells_raw":0,"read":"whole","date_system":"1900"}

{"sheet":"Intersections","index":0,"n_rows":16,"n_cols":8,"rows_kept":16,"cut":false,"hidden":false,"merged":[[0,1,0,2],[2,1,2,7],[0,5,0,6]]}
[null,"Bonbache.fr",null,"Bonbache.fr/Excel",null,"Bonbache.fr/ExcelVBA",null,"Livres Excel"]
[]
[null,"Extraire les données aux intersections des lignes et des colonnes"]
[]
[null,{"$f":"\"Ligne \" & ROW() -4 & \", Colonne \" & COLUMN()-1","v":"Ligne 1, Colonne 1"},{"$f":"\"Ligne \" & ROW() -4 & \", Colonne \" & COLUMN()-1","v":"Ligne 1, Colonne 2"},"Ligne 1, Colonne 3","Ligne 1, Colonne 4",null,"X Lignes à recouper","2 Colonnes à recouper"]
[null,{"$f":"\"Ligne \" & ROW() -4 & \", Colonne \" & COLUMN()-1","v":"Ligne 2, Colonne 1"},"Ligne 2, Colonne 2","Ligne 2, Colonne 3","Ligne 2, Colonne 4",null,"2 3 4 7 9","1 4"]
[null,"Ligne 3, Colonne 1","Ligne 3, Colonne 2","Ligne 3, Colonne 3","Ligne 3, Colonne 4"]
[null,"Ligne 4, Colonne 1","Ligne 4, Colonne 2","Ligne 4, Colonne 3","Ligne 4, Colonne 4"]
[null,"Ligne 5, Colonne 1","Ligne 5, Colonne 2","Ligne 5, Colonne 3","Ligne 5, Colonne 4"]
[null,"Ligne 6, Colonne 1","Ligne 6, Colonne 2","Ligne 6, Colonne 3","Ligne 6, Colonne 4"]
[null,"Ligne 7, Colonne 1","Ligne 7, Colonne 2","Ligne 7, Colonne 3","Ligne 7, Colonne 4"]
[null,"Ligne 8, Colonne 1","Ligne 8, Colonne 2","Ligne 8, Colonne 3","Ligne 8, Colonne 4"]
[null,"Ligne 9, Colonne 1","Ligne 9, Colonne 2","Ligne 9, Colonne 3","Ligne 9, Colonne 4"]
[null,"Ligne 10, Colonne 1","Ligne 10, Colonne 2","Ligne 10, Colonne 3","Ligne 10, Colonne 4"]
[null,{"$f":"\"Ligne \" & ROW() -4 & \", Colonne \" & COLUMN()-1","v":"Ligne 11, Colonne 1"},"Ligne 11, Colonne 2","Ligne 11, Colonne 3","Ligne 11, Colonne 4"]
[null,"Ligne 12, Colonne 1","Ligne 12, Colonne 2","Ligne 12, Colonne 3","Ligne 12, Colonne 4"]